[Event "44th Chess Olympiad Open 2022"]
[Site "Chennai"]
[Date "2022.08.01"]
[Round "4.28"]
[White "Munoz Santana, Jose Lisandro"]
[Black "Kadric, Denis"]
[Result "0-1"]
[WhiteElo "2423"]
[BlackElo "2554"]
[Annotator "TA"]
[PlyCount "54"]
[EventDate "2022.??.??"]
[TimeControl "60"]

{[%evp 15,54,45,57,32,54,26,52,37,56,33,61,33,60,27,41,9,56,49,64,78,97,108,
108,100,142,142,142,142,149,139,147,146,134,133,134,130,184,99,134,82,77]} 1.
c4 e5 2. g3 d6 3. Nc3 Nf6 4. Bg2 c6 5. d4 Nbd7 6. e3 Be7 7. Nge2 O-O 8. O-O Re8
9. Qc2 {A53: Old Indian Defence without Nf3.} Bf8 10. Rd1 a5 11. b3 {[#] White
is slightly better.} h5 $146 ({Predecessor:} 11... Qc7 12. Bb2 b6 13. Nb5 cxb5
14. Bxa8 Ba6 15. Bg2 bxc4 16. Rac1 d5 17. dxe5 Nxe5 {1-0 (36) Gumilevskaja,
G-Hartog,C Bad Liebenzell 1996}) 12. Ba3 Qc7 13. Rd2 exd4 14. exd4 g6 {[%cal
Yh5h4]} 15. Nf4 Bh6 (15... Nb6 $11) 16. Re2 $14 Bxf4 17. gxf4 Rxe2 18. Qxe2 {
[#] Strongly threatening Qe7.} ({Don't play} 18. Nxe2 a4 $14) 18... Nf8 19. d5
{And now dxc6 would win.} Bg4 20. Qd2 c5 21. f3 Bf5 22. Ne4 N8h7 23. Bb2 Ne8
24. Qc3 {[%csl Gb2][%cal Rc3h8] [#]} f6 25. Re1 h4 (25... Qd7 $16 {was worth a
try.} 26. a4 b6) 26. Ng5 Qg7 $16 27. Re2 Qh6 {Weighted Error Value: White=0.19
(very precise) /Black=0.16 (very precise) . Loss on time!?} 0-1

[Event "44th Chess Olympiad Open 2022"]
[Site "Chennai"]
[Date "2022.08.01"]
[Round "4.28"]
[White "Camacho Campusano, David Daniel"]
[Black "Draskovic, Luka"]
[Result "1-0"]
[WhiteElo "2221"]
[BlackElo "2503"]
[Annotator "TA"]
[PlyCount "93"]
[EventDate "2022.??.??"]
[TimeControl "60"]

{[%evp 18,93,8,25,26,23,54,20,46,39,50,40,63,56,69,85,196,198,191,199,191,186,
147,145,160,63,80,77,86,81,93,60,61,67,72,62,62,67,102,97,97,87,115,133,133,
105,118,120,131,126,228,197,204,190,208,212,254,252,231,218,354,345,411,349,
437,430,426,397,572,572,718,710,660,624,858,800,861,747]} 1. e4 {[%emt 0:00:11]
} c5 {[%emt 0:00:10]} 2. Nf3 {[%emt 0:00:12]} d6 {[%emt 0:00:14]} 3. d4 {
[%emt 0:00:08]} cxd4 {[%emt 0:00:22]} 4. Nxd4 {[%emt 0:00:12]} Nf6 {[%emt 0:00:
00]} 5. Nc3 {[%emt 0:00:15]} Nc6 {[%emt 0:01:12]} 6. Bg5 {[%emt 0:01:59]} Bd7 {
[%emt 0:00:16]} 7. Qd2 {[%emt 0:02:07]} a6 {[%emt 0:00:56]} 8. O-O-O {[%emt 0:
00:00]} e6 {[%emt 0:00:13]} 9. f3 {[%emt 0:00:34]} Nxd4 {[%emt 0:02:46]} 10.
Qxd4 {[%emt 0:00:18]} Be7 {[%emt 0:00:06] B67: Sicilian: Richter-Rauzer: 7...
a6 8 0-0-0 Bd7, lines without 9 f4 Be7.} 11. g4 {[%emt 0:02:24]} h5 {[%emt 0:
00:00]} 12. gxh5 {[%emt 0:02:30]} Rxh5 {[%emt 0:02:12] The position is equal.}
13. h4 {[%emt 0:01:12][%cal Yh2h4,Yh4h5]} Qc7 {[%emt 0:02:31] [#]} 14. Be2 $146
{[%emt 0:04:14]} ({Predecessor:} 14. f4 Bc6 15. Rh3 O-O-O 16. a4 d5 17. e5 Ne4
18. Nb5 axb5 19. Bxe7 Qxe7 20. axb5 Bxb5 21. Bxb5 {1-0 (27) Savchenko,B (2538)
-Lupulescu,C (2656) Tornelo INT 2021}) 14... O-O-O {[%emt 0:00:00][%cal Yd6d5]}
15. f4 {[%emt 0:03:58][%cal Yf3f4,Yf4e5] White is more active.} Rhh8 {[%emt 0:
03:24]} 16. h5 {[%emt 0:11:11] aiming for h6.} e5 {[%emt 0:08:28] [#]} (16...
d5 $16) 17. Qa7 $1 $18 {[%emt 0:04:24]} Qc5 {[%emt 0:20:19]} 18. Qxc5+ {
[%emt 0:01:31]} dxc5 {[%emt 0:00:04]} 19. fxe5 {[%emt 0:00:56]} Nd5 {[%emt 0:
00:42]} 20. Bxe7 {[%emt 0:00:59]} ({Much less strong is} 20. exd5 $6 Bxg5+ 21.
Kb1 Rde8 $16) 20... Nxe7 {[%emt 0:00:04]} 21. Bc4 {[%emt 0:05:52]} (21. Rhf1
$16) 21... Nc6 $14 {[%emt 0:01:16]} 22. Bxf7 {[%emt 0:01:35]} Nxe5 {[%emt 0:00:
10]} 23. Bg6 {[%emt 0:04:17]} Bg4 {[%emt 0:00:00]} 24. Rdg1 {[%emt 0:07:23]
[%cal Yg1g4] [#] And now Rxg4! would win.} Rdf8 {[%emt 0:02:35]} 25. Nd5 {
[%emt 0:06:37][%cal Yg6f5]} Kb8 {[%emt 0:03:51]} 26. Rh4 {[%emt 0:05:02]} Be6 {
[%emt 0:05:38]} 27. Rf4 {[%emt 0:01:10]} Rd8 {[%emt 0:00:16] Black is now
going downhill.} ({Weaker is} 27... Rxf4 28. Nxf4 Bg4 29. Nd3 Nxd3+ 30. cxd3
$18) 28. Rg5 {[%emt 0:02:05]} Nxg6 {[%emt 0:04:00]} 29. hxg6 {[%emt 0:03:50]}
Rh1+ {[%emt 0:00:15]} 30. Kd2 {[%emt 0:00:21]} Rh2+ {[%emt 0:00:10]} 31. Kd3 {
[%emt 0:01:28][%cal Yf4f7]} Rh3+ {[%emt 0:01:28]} 32. Ke2 {[%emt 0:05:40][%cal
Yf4f7]} (32. Kc4 {with more complications.} Rh2 33. Re5 Re8 34. Kxc5 Rxc2+ 35.
Kd4) 32... Rh6 {[%emt 0:00:29]} 33. a4 {[%emt 0:00:00][%cal Ya2a4,Ya4a5]} Rdh8
{[%emt 0:00:39]} (33... Re8 $16 34. Ke3 Bxd5 35. Rxd5 Rxg6) 34. a5 {[%emt 0:01:
30]} Kc8 {[%emt 0:01:36]} 35. Rf3 {[%emt 0:03:44]} Rh4 {[%emt 0:01:48]} 36. Kd3
{[%emt 0:01:29]} Kd7 {[%emt 0:00:00]} 37. Nf4 {[%emt 0:02:46] Inhibits Rh3.}
Rf8 {[%emt 0:00:17]} 38. Ke3 {[%emt 0:00:26]} Bg4 {[%emt 0:00:02]} (38... c4
$142 39. Rf1 c3) 39. Rf2 $18 {[%emt 0:02:12]} Kc6 {[%emt 0:00:15]} 40. Re5 {
[%emt 0:02:25]} Rd8 {[%emt 0:00:00]} 41. Nd3 {[%emt 0:33:49]} Rh3+ {[%emt 0:31:
19]} 42. Kd2 {[%emt 0:00:26]} b6 {[%emt 0:00:00]} (42... Bf3 $142 43. Rxc5+ Kd6
44. Rd5+ Kc7 45. Rxd8 Kxd8) 43. Rd5 {[%emt 0:07:19] White is clearly winning.}
Rxd5 {[%emt 0:00:00]} 44. exd5+ {[%emt 0:00:00]} Kb5 {[%emt 0:00:00]} 45. Ne5 {
[%emt 0:00:00]} Rg3 {[%emt 0:00:00]} 46. Rf7 {[%emt 0:00:00]} Kxa5 {[%emt 0:00:
00]} 47. Rxg7 {[%emt 0:00:00] Weighted Error Value: White=0.11 (very precise) /
Black=0.32} 1-0

[Event "44th Chess Olympiad Open 2022"]
[Site "Chennai"]
[Date "2022.08.01"]
[Round "4.29"]
[White "Kazhgaleyev, Murtas"]
[Black "Tissir, Mohamed"]
[Result "0-1"]
[WhiteElo "2536"]
[BlackElo "2366"]
[Annotator "TA"]
[PlyCount "78"]
[EventDate "2022.??.??"]
[TimeControl "60"]

{[%evp 14,78,38,13,20,16,8,7,12,9,0,3,36,26,32,31,12,-13,0,-29,0,0,0,-135,-100,
-396,-388,-387,-382,-291,-270,-288,-252,-258,0,-188,-123,-223,-191,-444,-433,
-415,-358,-329,-364,-360,-325,-331,-262,-327,-313,-529,-489,-514,-477,-673,
-331,-29965,-29963,-6436,-6424,-29988,-29989,-29989,-29990,-29993,-29994]} 1.
d4 {[%emt 0:00:54]} Nf6 {[%emt 0:00:08]} 2. c4 {[%emt 0:00:04]} g6 {[%emt 0:00:
00]} 3. Nc3 {[%emt 0:00:07]} Bg7 {[%emt 0:00:05]} 4. e4 {[%emt 0:00:16]} d6 {
[%emt 0:00:07]} 5. Bd3 {[%emt 0:00:09]} O-O {[%emt 0:00:57]} 6. Nge2 {[%emt 0:
00:00]} c5 {[%emt 0:05:29]} 7. d5 {[%emt 0:00:23]} e6 {[%emt 0:00:22]} 8. Bg5 {
[%emt 0:01:08]} h6 {[%emt 0:00:19] E70: King's Indian: Miscellaneous lines
with 4 e4, including 5 Nge2 and 5 Bd3 0-0 6 Nge2.} 9. Bh4 {[%emt 0:00:17]} exd5
{[%emt 0:00:31]} 10. Nxd5 {[%emt 0:00:00]} g5 {[%emt 0:00:30] The position is
equal.} 11. Bg3 {[%emt 0:00:29]} Nxd5 {[%emt 0:00:18]} 12. cxd5 {[%emt 0:00:12]
[#]} Qe7 $146 {[%emt 0:07:51]} ({Predecessor:} 12... Bxb2 13. h4 g4 14. Rb1 Bg7
15. O-O Re8 16. Nf4 c4 17. Bxc4 Rxe4 18. Bd3 Re5 {½-½ (68) Ju,W (2568)-Lagno,
K (2556) Khanty-Mansiysk 2018}) 13. h4 {[%emt 0:06:20]} Nd7 {[%emt 0:11:58]}
14. hxg5 {[%emt 0:08:41]} hxg5 {[%emt 0:00:12]} 15. Nc3 {[%emt 0:23:20][%cal
Ye4e5] e5! is the strong threat.} f5 {[%emt 0:08:27][%cal Yf7f5,Yf5f4]} 16. Qh5
{[%emt 0:01:20]} (16. Kf1 $5 {[%cal Rd1h5]} f4 17. e5 (17. Qh5 $2 Rf6 $19)
17... Nxe5 18. Bh7+ Kh8 19. Bd3+ Kg8 20. Bh7+ Kh8 21. Bd3+ Kg8 $11) 16... f4 {
[%emt 0:05:28]} (16... Rf7 $5 {[%cal Rf5f4]}) 17. Qh7+ {[%emt 0:03:46]} Kf7 {
[%emt 0:00:44]} 18. e5 {[%emt 0:07:48] [#]} Ke8 $1 $17 {[%emt 0:11:49]} (18...
Nxe5 19. Qh5+ Ng6+ 20. Kd1 $16) 19. O-O-O $2 {[%emt 0:23:38]} Nxe5 $19 {
[%emt 0:02:04]} (19... fxg3 20. exd6 Qf6 21. fxg3 $15) 20. Bh2 {[%emt 0:00:00]}
Kd8 {[%emt 0:04:27][%cal Yb7b5]} 21. Bc2 {[%emt 0:11:51]} a6 {[%emt 0:00:00]}
22. f3 {[%emt 0:06:28]} Kc7 {[%emt 0:05:06][%cal Yc8f5]} 23. Bg1 {[%emt 0:00:
00][%cal Yg1c5]} Bd7 $2 {[%emt 0:02:38]} (23... Kb8 $19 {Hoping for ...b5.} 24.
Qe4 Ra7) 24. Qe4 $2 {[%emt 0:03:56]} (24. Bxc5 $1 $11 Rf6 25. Bd4) 24... Rad8 {
[%emt 0:10:47]} (24... Kb8 $19 {Strongly threatening ...b5.} 25. Bf2 Ka7) 25.
Qe2 {[%emt 0:00:00]} (25. Bxc5 $17 {keeps fighting.} Bf5 26. Qb4 dxc5 27. d6+
Qxd6 28. Qa5+ Qb6 29. Qxb6+ Kxb6 30. Rxd8 Rxd8 31. Bxf5) 25... Kb8 {[%emt 0:00:
40]} 26. b4 $2 {[%emt 0:00:00]} (26. Bf2 {was necessary.}) 26... cxb4 {[%emt 0:
02:00]} 27. Ne4 {[%emt 0:00:00]} Rc8 {[%emt 0:01:00]} 28. Qf2 {[%emt 0:00:00]
White wants to mate with Qa7+.} Nc4 {[%emt 0:00:09] And now ... Ne3 would win.}
29. Qa7+ {[%emt 0:00:00]} Kc7 {[%emt 0:00:05][%cal Yb8c7,Yc7d8,Yd8e8,Ye8e7,
Ye7e8,Ye8f7] White must now prevent ...Ra8.} 30. Nc5 {[%emt 0:00:00][%cal
Yg1f2]} Kd8 {[%emt 0:07:38]} ({Weaker is} 30... dxc5 31. d6+ Nxd6 32. Bxc5 $11)
(30... Bb2+ 31. Kb1 $11) 31. Nxb7+ {[%emt 0:00:18]} Ke8 {[%emt 0:00:05]
Dancing on a razor blade.} 32. Bd4 {[%emt 0:01:38] Prevents Bb2+.} (32. Bg6+ {
was the only defense.} Rf7 33. Bd4 (33. Bxf7+ $2 Kxf7 34. Nd8+ Qxd8 $19)) 32...
Ne3 {[%emt 0:03:08]} 33. Bxe3 {[%emt 0:00:15]} fxe3 {[%emt 0:00:18]} 34. Rde1 {
[%emt 0:01:20]} (34. Rd3 $142 Kf7 35. Qxe3) 34... Rc3 {[%emt 0:00:46]} (34...
Kf7 $142 {( -> ...Qf6)} 35. Qxe3 {[#]} Rxc2+ $1 36. Kxc2 Bf5+ 37. Kd1 Qxb7 38.
Qxg5 Qxd5+ 39. Qd2 Qc5) 35. Qxa6 $2 {[%emt 0:01:03]} (35. Qb6 $19 Ba4 36. Rxe3
(36. Nxd6+ $2 Kd7 $19) 36... Qxe3+ 37. Qxe3+ Rxe3 38. Bxa4+ Ke7 39. Bc2) 35...
Qe5 {[%emt 0:00:09][%cal Yc3c2]} 36. Nxd6+ {[%emt 0:00:43]} Ke7 {[%emt 0:00:17]
} 37. Nc4 {[%emt 0:00:48] [#]} Rxc4 $1 {[%emt 0:00:46][%cal Re5a1] Black mates.
} 38. d6+ {[%emt 0:00:00]} Ke8 {[%emt 0:00:21][%cal Re5a1]} 39. Qa8+ {[%emt 0:
00:40]} Kf7 {[%emt 0:00:09] Weighted Error Value: White=0.98/Black=0.27 
(precise)} 0-1

[Event "44th Chess Olympiad Open 2022"]
[Site "Chennai"]
[Date "2022.08.01"]
[Round "4.29"]
[White "Nogerbek, Kazybek"]
[Black "Hadj Kholti, Yasser"]
[Result "1-0"]
[WhiteElo "2437"]
[BlackElo "1871"]
[Annotator "TA"]
[PlyCount "45"]
[EventDate "2022.??.??"]
[TimeControl "60"]

{[%evp 20,45,25,0,78,79,97,6,0,25,53,58,75,58,239,183,185,168,1162,1133,1381,
1175,1168,1168,1102,448,765,719]} 1. c4 {[%emt 0:00:10]} c5 {[%emt 0:00:22]} 2.
Nc3 {[%emt 0:01:18]} Nc6 {[%emt 0:00:29]} 3. e3 {[%emt 0:00:24]} Nf6 {[%emt 0:
00:00]} 4. d4 {[%emt 0:00:08]} cxd4 {[%emt 0:00:05]} 5. exd4 {[%emt 0:00:07]}
d5 {[%emt 0:00:17]} 6. Nf3 {[%emt 0:00:08]} e6 {[%emt 0:03:32]} 7. c5 {[%emt 0:
00:00]} Be7 {[%emt 0:02:58]} 8. Bb5 {[%emt 0:02:00]} O-O {[%emt 0:01:47]} 9.
Bf4 {[%emt 0:07:27]} Bd7 {[%emt 0:07:02]} 10. O-O {[%emt 0:03:17]} Ne4 {
[%emt 0:05:06]} 11. Rc1 {[%emt 0:05:11]} Nxc3 {[%emt 0:01:53] B14: Caro-Kann:
Panov-Botvinnik Attack with 5...e6 and 5...g6.} (11... g5 $11 {remains equal.}
12. Be3 f5) 12. Rxc3 $16 {[%emt 0:00:14] [#]} Ne5 $146 {[%emt 0:25:21]} ({
Predecessor:} 12... a6 13. Bxc6 Bxc6 14. Re1 Qc8 15. Ne5 Bf6 16. Rh3 g6 17. Ng4
Bg7 18. Bh6 f5 19. Ne5 Bxh6 20. Rxh6 {1-0 (48) Tokranovs,D (1973)-Zidanavicius,
E (1837) Palanga 2012}) 13. dxe5 {[%emt 0:02:46]} ({White should play} 13. Nxe5
$16 Bxb5 14. Re1) 13... Bxb5 $11 {[%emt 0:00:09] The position is equal.} 14.
Re1 {[%emt 0:00:05]} Rc8 {[%emt 0:24:31]} 15. Nd4 {[%emt 0:01:54]} Bd7 {
[%emt 0:00:07]} 16. b4 {[%emt 0:10:57] 0x0.0019ebcdbe5bdp-1022s more active
pieces.} (16. Qh5 $5 {[%cal Rc3h3]} g6 17. Qh6 $11) 16... b6 $2 {[%emt 0:06:52]
Loses the game.} ({Better is} 16... a5 $14) 17. c6 {[%emt 0:06:55] Qh5 is the
strong threat.} Bxb4 {[%emt 0:03:28] [#]} 18. Rh3 $36 {[%emt 0:01:36][%cal
Yd1h5] And now Qh5! would win. White has strong initiative.} Bxe1 $2 {[%emt 0:
01:21] [#]} (18... Bxc6 $2 19. Qb1 g6 20. Qxb4 $18) (18... g6) 19. Qh5 $1 $18 {
[%emt 0:00:41][%csl Gh3][%cal Rh5h7] White is clearly winning.} h6 {[%emt 0:01:
20]} 20. Bxh6 {[%emt 0:01:45]} g6 {[%emt 0:01:09]} 21. Qg4 {[%emt 0:00:00]} Rc7
{[%emt 0:05:24]} 22. Bxf8 {[%emt 0:03:03]} (22. Bg5 $142 {White threatens Qh4
and mate.} f6 23. Bxf6 Rxf6 24. exf6 Qxf6 25. Rf3 Qxf3 26. Qxg6+ Kf8 27. gxf3)
22... Bxc6 {[%emt 0:02:07]} (22... Bd2 $142 23. Bh6 Bxh6) 23. Bd6 {[%emt 0:01:
09] Weighted Error Value: White=0.76/Black=0.81} 1-0

[Event "44th Chess Olympiad Open 2022"]
[Site "Chennai"]
[Date "2022.08.01"]
[Round "4.29"]
[White "Msellek, Ilyass"]
[Black "Jumabayev, Rinat"]
[Result "1/2-1/2"]
[WhiteElo "2398"]
[BlackElo "2617"]
[Annotator "TA"]
[PlyCount "82"]
[EventDate "2022.??.??"]
[TimeControl "60"]

{[%evp 12,82,12,4,29,27,33,27,43,37,48,49,45,32,36,41,60,37,83,31,41,30,32,37,
38,35,35,26,49,40,38,35,48,43,52,27,38,39,39,34,33,33,41,39,44,39,56,36,31,0,
52,0,42,29,29,29,36,47,50,37,58,0,83,54,77,66,83,24,108,113,102,108,114]} 1. e4
{[%emt 0:00:07]} e5 {[%emt 0:00:09]} 2. Nf3 {[%emt 0:00:16][%cal Yg1f3,Yf3d4,
Yd4f5,Yf5e3]} Nc6 {[%emt 0:00:05]} 3. d4 {[%emt 0:00:45]} exd4 {[%emt 0:00:05]}
4. Nxd4 {[%emt 0:00:05]} Bb4+ {[%emt 0:01:35]} 5. c3 {[%emt 0:00:00][%cal
Yc2c3,Yc3c4]} Bc5 {[%emt 0:00:03]} 6. Be3 {[%emt 0:00:12]} Bb6 {[%emt 0:00:23]}
7. Nf5 {[%emt 0:00:13]} Bxe3 {[%emt 0:13:15] C45: Scotch Game.} (7... g6 $5 {
[%cal Rg6f5]} 8. Nd4 Nf6 $11) 8. Nxe3 {[%emt 0:00:42]} (8. fxe3 g6 9. Ng3 Nf6
$15) 8... Nf6 {[%emt 0:00:12]} 9. f3 {[%emt 0:00:20]} Qe7 {[%emt 0:05:18]
White has an edge.} 10. c4 {[%emt 0:19:07]} Qb4+ {[%emt 0:01:30]} 11. Qd2 {
[%emt 0:01:43]} Qxd2+ {[%emt 0:00:06]} 12. Kxd2 {[%emt 0:00:33]} d6 {[%emt 0:
04:35]} 13. Nc3 {[%emt 0:02:49] [#]} Nd4 $146 {[%emt 0:01:27]} ({Predecessor:} 
13... Be6 14. Be2 O-O-O 15. Rhb1 Nd7 16. b4 Ne7 17. Ncd5 Rhe8 18. a4 c6 19. Nc3
f5 {0-1 (59) Escalante Ramirez,B (2454)-Beradze,I (2475) Tornelo INT 2021}) 14.
Rd1 {[%emt 0:08:00]} Ne6 {[%emt 0:00:52]} (14... Bd7 $14 {is superior.}) 15.
Kc1 {[%emt 0:05:51]} (15. Ned5 $16) 15... Bd7 $14 {[%emt 0:00:00]} 16. Be2 {
[%emt 0:09:53]} a5 {[%emt 0:01:27]} 17. b3 {[%emt 0:01:20]} h5 {[%emt 0:07:25]}
18. h4 {[%emt 0:01:21]} Nc5 {[%emt 0:00:25]} 19. Kc2 {[%emt 0:00:00]} Be6 {
[%emt 0:02:13]} 20. a3 {[%emt 0:05:38]} Ke7 {[%emt 0:01:29]} 21. Rhe1 {[%emt 0:
29:21]} Rhd8 {[%emt 0:13:16]} 22. Bf1 {[%emt 0:07:35]} Kf8 23. Nb5 {[%emt 0:02:
44]} Ne8 {[%emt 0:01:11]} 24. Nd4 {[%emt 0:00:00]} Bd7 {[%emt 0:00:49]} 25. g3
{[%emt 0:00:50]} g6 {[%emt 0:00:36]} 26. Rd2 {[%emt 0:00:00]} c6 {[%emt 0:01:
38]} 27. Kb2 {[%emt 0:02:59]} Nf6 {[%emt 0:01:25]} 28. Red1 {[%emt 0:00:00]}
Ke7 {[%emt 0:00:10]} 29. Ne2 {[%emt 0:00:00]} Be6 {[%emt 0:05:32]} 30. Nd4 {
[%emt 0:00:00]} Bd7 {[%emt 0:02:37]} 31. Ne2 {[%emt 0:00:00]} (31. Bd3 $14)
31... Ne8 {[%emt 0:00:03]} 32. Nc1 {[%emt 0:01:33][%cal Ye2c1,Yc1d3,Yd3f4,
Yf4h3,Yh3g5]} Be6 {[%emt 0:01:12]} 33. Nd3 {[%emt 0:00:00]} Na6 {[%emt 0:05:00]
} 34. Nf4 $36 {[%emt 0:00:15] White is pushing.} Nf6 {[%emt 0:01:22]} 35. Be2 {
[%emt 0:00:57]} Rd7 {[%emt 0:00:54]} 36. Bf1 {[%emt 0:00:21]} ({Better is} 36.
Bd3 $14) 36... Rg8 {[%emt 0:00:09]} (36... Rdd8 $11) 37. Nh3 {[%emt 0:00:48]
White is more active.} ({Much worse is} 37. Nxe6 fxe6 38. Bh3 g5 $11) 37... Nc5
{[%emt 0:10:43]} 38. Ng5 {[%emt 0:00:00]} Rdd8 {[%emt 0:00:05]} 39. Bh3 {
[%emt 0:00:16]} (39. Re1 $16) 39... a4 {[%emt 0:02:15]} (39... Nh7 $11 {
keeps the balance.} 40. Nxh7 (40. Nxe6 fxe6 41. b4 axb4 $14) 40... Bxh3) 40. b4
$16 {[%emt 0:00:19]} Nb3 {[%emt 0:00:17]} 41. Rd3 {[%emt 0:03:40]} Rd7 {
[%emt 0:09:00] Weighted Error Value: White=0.13 (very precise) /Black=0.17 
(very precise)} 1/2-1/2